Workbook

Sheet DATASET1
B2: DATASET 1
B4: Student No. | C4: Name | D4: Semester Marks
B5: 801120 | C5: JOEY | D5: 350
B6: 801121 | C6: MONICA | D6: 380
B7: 801125 | C7: CHARLIE | D7: 340
B8: 801126 | C8: LORAINE | D8: 290
B9: 801127 | C9: CHER | D9: 280

Sheet DATASET2
B2: DATASET 2
B4: Student No. | C4: Name | D4: Semester Marks
B5: 801128 | C5: JAMIE | D5: 330
B6: 801129 | C6: CARLA | D6: 340
B7: 801130 | C7: RUBY | D7: 350
B8: 801132 | C8: SUSANE | D8: 320
B9: 801134 | C9: ROBERT | D9: 295

Sheet DATASET3
B2: DATASET 3
B4: Student No. | C4: Name | D4: Semester Marks
B5: 801135 | C5: JOLIE | D5: 290
B6: 801136 | C6: JUDY | D6: 310
B7: 801138 | C7: ROBIN | D7: 380
B8: 801139 | C8: BROWN | D8: 390
B9: 801140 | C9: SIMONE | D9: 360

Sheet CONSOLIDATE
A9: Student No. | B9: Name | C9: Semester Marks
A10: =DATASET1!$B$5 -> 801120 | C10: =DATASET1!$D$5 -> 350
A11: =DATASET2!$B$5 -> 801128 | C11: =DATASET2!$D$5 -> 330
A12: =DATASET3!$B$5 -> 801135 | C12: =DATASET3!$D$5 -> 290
A13: =SUM(A10:A12) -> 2403383 | C13: =SUM(C10:C12) -> 970
A14: =DATASET1!$B$6 -> 801121 | C14: =DATASET1!$D$6 -> 380
A15: =DATASET2!$B$6 -> 801129 | C15: =DATASET2!$D$6 -> 340
A16: =DATASET3!$B$6 -> 801136 | C16: =DATASET3!$D$6 -> 310
A17: =SUM(A14:A16) -> 2403386 | C17: =SUM(C14:C16) -> 1030
A18: =DATASET1!$B$7 -> 801125 | C18: =DATASET1!$D$7 -> 340
A19: =DATASET2!$B$7 -> 801130 | C19: =DATASET2!$D$7 -> 350
A20: =DATASET3!$B$7 -> 801138 | C20: =DATASET3!$D$7 -> 380
A21: =SUM(A18:A20) -> 2403393 | C21: =SUM(C18:C20) -> 1070
A22: =DATASET1!$B$8 -> 801126 | C22: =DATASET1!$D$8 -> 290
A23: =DATASET2!$B$8 -> 801132 | C23: =DATASET2!$D$8 -> 320
A24: =DATASET3!$B$8 -> 801139 | C24: =DATASET3!$D$8 -> 390
A25: =SUM(A22:A24) -> 2403397 | C25: =SUM(C22:C24) -> 1000
A26: =DATASET1!$B$9 -> 801127 | C26: =DATASET1!$D$9 -> 280
A27: =DATASET2!$B$9 -> 801134 | C27: =DATASET2!$D$9 -> 295
A28: =DATASET3!$B$9 -> 801140 | C28: =DATASET3!$D$9 -> 360
A29: =SUM(A26:A28) -> 2403401 | C29: =SUM(C26:C28) -> 935

Sheet Query1
A1: Student No. | B1: Name.1 | C1: Semester Marks | D1: Name
A2: 801120 | B2: JOEY | C2: 350 | D2: Table1
A3: 801121 | B3: MONICA | C3: 380 | D3: Table1
A4: 801125 | B4: CHARLIE | C4: 340 | D4: Table1
A5: 801126 | B5: LORAINE | C5: 290 | D5: Table1
A6: 801127 | B6: CHER | C6: 280 | D6: Table1
A7: 801128 | B7: JAMIE | C7: 330 | D7: Table13
A8: 801129 | B8: CARLA | C8: 340 | D8: Table13
A9: 801130 | B9: RUBY | C9: 350 | D9: Table13
A10: 801132 | B10: SUSANE | C10: 320 | D10: Table13
A11: 801134 | B11: ROBERT | C11: 295 | D11: Table13
A12: 801135 | B12: JOLIE | C12: 290 | D12: Table134
A13: 801136 | B13: JUDY | C13: 310 | D13: Table134
A14: 801138 | B14: ROBIN | C14: 380 | D14: Table134
A15: 801139 | B15: BROWN | C15: 390 | D15: Table134
A16: 801140 | B16: SIMONE | C16: 360 | D16: Table134
D17: Query1!ExternalData_1

Sheet VBA
B4: Student No. | C4: Name | D4: Semester Marks
B5: 801120 | C5: JOEY | D5: 350
B6: 801121 | C6: MONICA | D6: 380
B7: 801125 | C7: CHARLIE | D7: 340
B8: 801126 | C8: LORAINE | D8: 290
B9: 801127 | C9: CHER | D9: 280
B10: 801128 | C10: JAMIE | D10: 330
B11: 801129 | C11: CARLA | D11: 340
B12: 801130 | C12: RUBY | D12: 350
B13: 801132 | C13: SUSANE | D13: 320
B14: 801134 | C14: ROBERT | D14: 295
B15: 801135 | C15: JOLIE | D15: 290
B16: 801136 | C16: JUDY | D16: 310
B17: 801138 | C17: ROBIN | D17: 380
B18: 801139 | C18: BROWN | D18: 390
B19: 801140 | C19: SIMONE | D19: 360
